Workbook

Sheet 1-3 ГОДА
A1: 8 день на 10.09.2025
A2: МОУ детский сад № 320 Ежеденевное 20-ти дневное меню ( Весна-лето) для детей дошкольного возраста 1-3 лет, 12 часового режима функционирования
A3: Прием пищи, наименование блюда | B3: Масса порции | C3: Пищевые вещества | F3: Энергети-ческая ценность, ккал
C4: Белки, г | D4: Жиры, г | E4: Углеводы, г
A5: Завтрак
A6: КАША ЖИДКАЯ (геркулесовая) ТТК № 104 | B6: 150 | C6: 6.4 | D6: 4.6 | E6: 23.4 | F6: 159.2
A7: ЧАЙ С САХАРОМ, ВАРЕНЬЕМ,ДЖЕМОМ, ПОВИДЛОМ | B7: 180/10 | C7: 0.1 | D7: 0.0 | E7: 9.8 | F7: 39.4
A8: БАТОН | B8: 40 | C8: 3.0 | D8: 1.2 | E8: 20.6 | F8: 104.8
A10: ИТОГО ЗА ЗАВТРАК | B10: 380 | C10: =SUM(C6:C9) -> 9.5 | D10: 5.8 | E10: =SUM(E6:E9) -> 53.8 | F10: 303.4
A11: II Завтрак
A12: ФРУКТЫ СВЕЖИЕ (ЯБЛОКО) №368 | B12: 200 | C12: 0.8 | D12: 0.8 | E12: 19.0 | F12: 91.2
A13: СОК ЯБЛОЧНЫЙ | B13: 180 | C13: 0.9 | D13: 0.2 | E13: 17.7 | F13: 75.1
A14: ИТОГО ЗА 2-й ЗАВТРАК | B14: 380 | C14: =C12+C13 -> 1.7 | D14: =D12+D13 -> 1.0 | E14: =E12+E13 -> 36.7 | F14: =F12+F13 -> 166.3
A15: Обед
A16: САЛАТ ИЗ СВЕКЛЫ №33 | B16: 30 | C16: 0.4 | D16: 1.9 | E16: 2.5 | F16: 29.5
A17: Суп картофельный на куринном бульоне ТТК №87 | B17: 150 | C17: 2.1 | D17: 2.3 | E17: 11.7 | F17: 75.8
A18: ПЛОВ ИЗ ПТИЦЫ ТТК №67 | B18: 130 | C18: 10.9 | D18: 15.9 | E18: 36.5 | F18: 291.9
A19: КОМПОТ ИЗ СВЕЖИХ ПЛОДОВ № 372 | B19: 150 | C19: 0.1 | D19: 0.1 | E19: 17.4 | F19: 71.8
A20: ХЛЕБ ПЕКЛЕВАННЫЙ | B20: 40 | C20: 2.6 | D20: 0.4 | E20: 17.0 | F20: 81.6
A21: ХЛЕБ ПШЕНИЧНЫЙ | B21: 20 | C21: 1.5 | D21: 0.1 | E21: 9.7 | F21: 46.0
A22: ИТОГО ЗА ОБЕД | B22: 520 | C22: 17.6 | D22: 20.7 | E22: 94.8 | F22: 596.6
A23: Уплотнённый полдник
A24: Тефтели с соусом (говядина) №65 | B24: 50/30 | C24: 6.6 | D24: 7.8 | E24: 15.2 | F24: 143.9
A25: РАГУ ОВОЩНОЕ (3 ВАРИАНТ) №344 | B25: 110 | C25: 2.0 | D25: 4.3 | E25: 10.8 | F25: 97.7
A26: ЧАЙ С ЛИМОНОМ № 393 | B26: 180/10/7 | C26: 0.2 | D26: 0.0 | E26: 10.0 | F26: 41.7
A27: ХЛЕБ ПШЕНИЧНЫЙ | B27: 25 | C27: 1.9 | D27: 0.2 | E27: 12.5 | F27: 59.2
A30: ИТОГО ЗА ПОЛДНИК | B30: 412 | C30: =SUM(C24:C29) -> 10.7 | D30: =SUM(D24:D29) -> 12.3 | E30: =SUM(E24:E29) -> 48.5 | F30: 342.5
A31: Всего за день: | C31: =SUM(C30+C22+C14+C10) -> 39.5 | D31: =SUM(D30+D22+D14+D10) -> 39.8 | E31: 233.8 | F31: =SUM(F30+F22+F14+F10) -> 1,408.8

Sheet 3-7 ЛЕТ
A1: 8 день на 10.09.2025
A2: МОУ детский сад № 320 Ежеденевное 20-ти дневное меню ( Весна-лето) для детей дошкольного возраста 3-7 лет, 12 часового режима функционирования
A3: Прием пищи, наименование блюда | B3: Масса порции | C3: Пищевые вещества | F3: Энергети-ческая ценность, ккал
C4: Белки, г | D4: Жиры, г | E4: Углеводы, г
A5: Завтрак
A6: КАША ЖИДКАЯ (геркулесовая) ТТК № 104 | B6: 150 | C6: 6.4 | D6: 4.6 | E6: 23.4 | F6: 159.2
A7: ЧАЙ С САХАРОМ, ВАРЕНЬЕМ,ДЖЕМОМ, ПОВИДЛОМ | B7: 180/10 | C7: 0.1 | D7: 0.0 | E7: 9.8 | F7: 39.4
A8: БАТОН | B8: 40 | C8: 3.0 | D8: 1.2 | E8: 20.6 | F8: 104.8
A10: ИТОГО ЗА ЗАВТРАК | B10: 380 | C10: =SUM(C6:C9) -> 9.5 | D10: 5.8 | E10: =SUM(E6:E9) -> 53.8 | F10: 303.4
A11: II Завтрак
A12: ФРУКТЫ СВЕЖИЕ (ЯБЛОКО) №368 | B12: 200 | C12: 0.8 | D12: 0.8 | E12: 19.0 | F12: 91.2
A13: СОК ЯБЛОЧНЫЙ | B13: 180 | C13: 0.9 | D13: 0.2 | E13: 17.7 | F13: 75.1
A14: ИТОГО ЗА 2-й ЗАВТРАК | B14: 380 | C14: =C12+C13 -> 1.7 | D14: =D12+D13 -> 1.0 | E14: =E12+E13 -> 36.7 | F14: =F12+F13 -> 166.3
A15: Обед
A16: САЛАТ ИЗ СВЕКЛЫ №33 | B16: 30 | C16: 0.4 | D16: 1.9 | E16: 2.5 | F16: 29.5
A17: Суп картофельный на куринном бульоне ТТК №87 | B17: 150 | C17: 2.1 | D17: 2.3 | E17: 11.7 | F17: 75.8
A18: ПЛОВ ИЗ ПТИЦЫ ТТК №67 | B18: 130 | C18: 10.9 | D18: 15.9 | E18: 36.5 | F18: 291.9
A19: КОМПОТ ИЗ СВЕЖИХ ПЛОДОВ № 372 | B19: 150 | C19: 0.1 | D19: 0.1 | E19: 17.4 | F19: 71.8
A20: ХЛЕБ ПЕКЛЕВАННЫЙ | B20: 40 | C20: 2.6 | D20: 0.4 | E20: 17.0 | F20: 81.6
A21: ХЛЕБ ПШЕНИЧНЫЙ | B21: 20 | C21: 1.5 | D21: 0.1 | E21: 9.7 | F21: 46.0
A22: ИТОГО ЗА ОБЕД | B22: 520 | C22: 17.6 | D22: 20.7 | E22: 94.8 | F22: 596.6
A23: Уплотнённый полдник
A24: Тефтели с соусом (говядина) №65 | B24: 50/30 | C24: 6.6 | D24: 7.8 | E24: 15.2 | F24: 143.9
A25: РАГУ ОВОЩНОЕ (3 ВАРИАНТ) №344 | B25: 110 | C25: 2.0 | D25: 4.3 | E25: 10.8 | F25: 97.7
A26: ЧАЙ С ЛИМОНОМ № 393 | B26: 180/10/7 | C26: 0.2 | D26: 0.0 | E26: 10.0 | F26: 41.7
A27: ХЛЕБ ПШЕНИЧНЫЙ | B27: 25 | C27: 1.9 | D27: 0.2 | E27: 12.5 | F27: 59.2
A30: ИТОГО ЗА ПОЛДНИК | B30: 412 | C30: =SUM(C24:C29) -> 10.7 | D30: =SUM(D24:D29) -> 12.3 | E30: =SUM(E24:E29) -> 48.5 | F30: 342.5
A31: Всего за день: | C31: =SUM(C30+C22+C14+C10) -> 39.5 | D31: =SUM(D30+D22+D14+D10) -> 39.8 | E31: 233.8 | F31: =SUM(F30+F22+F14+F10) -> 1,408.8

Sheet Лист3
